[Event "*** SCC Grand Prix: Titled Tuesday Blitz"]
[Site "Chess.com"]
[Date "2020.07.07"]
[Round "6"]
[White "AliKa2810"]
[Black "chenxiaoyuer"]
[Result "1-0"]
[WhiteElo "2588"]
[BlackElo "2414"]
[TimeControl "180+1"]
[EndTime "11:06:56 PDT"]
[Termination "AliKa2810 won by checkmate"]

1. d4 {[%clk 0:03:00.9]} 1... Nf6 {[%clk 0:02:59.8]} 2. c4 {[%clk 0:03:01.1]}
2... g6 {[%clk 0:03:00]} 3. Nc3 {[%clk 0:03:00.9]} 3... Bg7 {[%clk 0:03:00.6]}
4. e4 {[%clk 0:03:00.6]} 4... d6 {[%clk 0:03:01.2]} 5. h3 {[%clk 0:03:00.8]}
5... O-O {[%clk 0:02:59.8]} 6. Be3 {[%clk 0:03:01.4]} 6... e5 {[%clk 0:02:55.8]}
7. d5 {[%clk 0:03:01.3]} 7... Qe8 {[%clk 0:02:56.1]} 8. g4 {[%clk 0:02:57.2]}
8... a5 {[%clk 0:01:58.7]} 9. Nge2 {[%clk 0:02:55.1]} 9... Na6 {[%clk
0:01:53.2]} 10. Ng3 {[%clk 0:02:53.7]} 10... c6 {[%clk 0:01:51.3]} 11. f3 {[%clk
0:02:52.3]} 11... cxd5 {[%clk 0:01:39.7]} 12. cxd5 {[%clk 0:02:53.2]} 12... Bd7
{[%clk 0:01:39.7]} 13. h4 {[%clk 0:02:46.1]} 13... b5 {[%clk 0:01:36.5]} 14. Qd2
{[%clk 0:02:39.7]} 14... b4 {[%clk 0:01:36.1]} 15. Nd1 {[%clk 0:02:39.2]} 15...
Bb5 {[%clk 0:01:18.9]} 16. h5 {[%clk 0:02:37.9]} 16... Bxf1 {[%clk 0:01:16.1]}
17. Kxf1 {[%clk 0:02:38.4]} 17... Nd7 {[%clk 0:01:12.2]} 18. Kg2 {[%clk
0:02:34.7]} 18... f6 {[%clk 0:01:11.1]} 19. h6 {[%clk 0:02:27.8]} 19... Bh8
{[%clk 0:01:10.6]} 20. Nf2 {[%clk 0:02:28.4]} 20... Qf7 {[%clk 0:01:08.5]} 21.
Nd3 {[%clk 0:02:22.2]} 21... Rfc8 {[%clk 0:01:06.3]} 22. Rhc1 {[%clk 0:02:21]}
22... Qe8 {[%clk 0:01:03.3]} 23. Rc6 {[%clk 0:01:13.5]} 23... Rxc6 {[%clk
0:00:46.5]} 24. dxc6 {[%clk 0:01:14.4]} 24... Nf8 {[%clk 0:00:46.9]} 25. Rc1
{[%clk 0:01:13.5]} 25... Ne6 {[%clk 0:00:46.6]} 26. Qc2 {[%clk 0:01:10.6]} 26...
Nac7 {[%clk 0:00:45.3]} 27. Qc4 {[%clk 0:01:06]} 27... Qf7 {[%clk 0:00:44.1]}
28. Kf2 {[%clk 0:01:04.7]} 28... Nd8 {[%clk 0:00:28.3]} 29. Bb6 {[%clk
0:00:56.2]} 29... Qxc4 {[%clk 0:00:22.4]} 30. Rxc4 {[%clk 0:00:57.1]} 30... Nde6
{[%clk 0:00:22.9]} 31. a3 {[%clk 0:00:55.3]} 31... d5 {[%clk 0:00:20.1]} 32.
exd5 {[%clk 0:00:45.7]} 32... Nxd5 {[%clk 0:00:21]} 33. Bc5 {[%clk 0:00:40.3]}
33... Kf7 {[%clk 0:00:18.3]} 34. axb4 {[%clk 0:00:40]} 34... axb4 {[%clk
0:00:18.1]} 35. Bxb4 {[%clk 0:00:39.3]} 35... Rb8 {[%clk 0:00:15.7]} 36. Ba3
{[%clk 0:00:38.8]} 36... Ke8 {[%clk 0:00:14.6]} 37. Ne4 {[%clk 0:00:38.3]} 37...
Rb3 {[%clk 0:00:08.8]} 38. Ndc5 {[%clk 0:00:36.1]} 38... Nxc5 {[%clk 0:00:06.5]}
39. Nxc5 {[%clk 0:00:37]} 39... Rb6 {[%clk 0:00:04.8]} 40. Ne6 {[%clk
0:00:31.7]} 40... Kf7 {[%clk 0:00:03.3]} 41. c7 {[%clk 0:00:31]} 41... Nxc7
{[%clk 0:00:03]} 42. Nxc7 {[%clk 0:00:30.9]} 42... Rb3 {[%clk 0:00:03.9]} 43.
Nd5 {[%clk 0:00:30.2]} 43... f5 {[%clk 0:00:04.3]} 44. gxf5 {[%clk 0:00:26]}
44... gxf5 {[%clk 0:00:05.2]} 45. Rc7+ {[%clk 0:00:25.1]} 45... Kg6 {[%clk
0:00:05.1]} 46. Rc6+ {[%clk 0:00:24.8]} 46... Kg5 {[%clk 0:00:05.1]} 47. Rc8
{[%clk 0:00:20.3]} 47... Bf6 {[%clk 0:00:04.4]} 48. Rg8+ {[%clk 0:00:20.4]}
48... Kh4 {[%clk 0:00:04.3]} 49. Nxf6 {[%clk 0:00:20.6]} 49... e4 {[%clk
0:00:05.2]} 50. fxe4 {[%clk 0:00:20.1]} 50... f4 {[%clk 0:00:06.1]} 51. Rg4+
{[%clk 0:00:18.8]} 51... Kh3 {[%clk 0:00:06]} 52. Rxf4 {[%clk 0:00:19.4]} 52...
Kh2 {[%clk 0:00:06.1]} 53. Rh4+ {[%clk 0:00:19.1]} 53... Rh3 {[%clk 0:00:05.9]}
54. Ng4+ {[%clk 0:00:19.6]} 54... Kh1 {[%clk 0:00:06.8]} 55. Rxh3# {[%clk
0:00:20.2]} 1-0

[Event "*** SCC Grand Prix: Titled Tuesday Blitz"]
[Site "Chess.com"]
[Date "2020.07.07"]
[Round "6"]
[White "GEKKESPONS"]
[Black "ega2006"]
[Result "1-0"]
[WhiteElo "2543"]
[BlackElo "2351"]
[TimeControl "180+1"]
[EndTime "11:06:58 PDT"]
[Termination "GEKKESPONS won by checkmate"]

1. d4 {[%clk 0:03:00.9]} 1... Nf6 {[%clk 0:02:55.5]} 2. Nf3 {[%clk 0:02:49.8]}
2... c5 {[%clk 0:02:54.4]} 3. d5 {[%clk 0:02:49.1]} 3... e6 {[%clk 0:02:53.3]}
4. Nc3 {[%clk 0:02:47]} 4... b5 {[%clk 0:02:52.7]} 5. dxe6 {[%clk 0:02:34.2]}
5... fxe6 {[%clk 0:02:50]} 6. Nxb5 {[%clk 0:02:22.3]} 6... d5 {[%clk 0:02:49.2]}
7. e3 {[%clk 0:01:57.6]} 7... Be7 {[%clk 0:02:48.5]} 8. Be2 {[%clk 0:01:50.6]}
8... O-O {[%clk 0:02:48.2]} 9. O-O {[%clk 0:01:50.6]} 9... Bb7 {[%clk
0:02:46.1]} 10. c4 {[%clk 0:01:49.3]} 10... a6 {[%clk 0:02:41.3]} 11. Nc3 {[%clk
0:01:48.7]} 11... Nc6 {[%clk 0:02:37.8]} 12. cxd5 {[%clk 0:01:40.9]} 12... exd5
{[%clk 0:02:38.7]} 13. b3 {[%clk 0:01:40.9]} 13... Kh8 {[%clk 0:02:36.8]} 14.
Bb2 {[%clk 0:01:40.1]} 14... Qd6 {[%clk 0:02:35.5]} 15. h3 {[%clk 0:01:25.8]}
15... Rad8 {[%clk 0:02:30.6]} 16. Rc1 {[%clk 0:01:25.3]} 16... d4 {[%clk
0:02:27.1]} 17. exd4 {[%clk 0:01:24.8]} 17... cxd4 {[%clk 0:02:28]} 18. Na4
{[%clk 0:00:59.6]} 18... d3 {[%clk 0:02:27.8]} 19. Ng5 {[%clk 0:00:54.5]} 19...
dxe2 {[%clk 0:01:38]} 20. Qxe2 {[%clk 0:00:54.2]} 20... Qd2 {[%clk 0:01:34.4]}
21. Qxd2 {[%clk 0:00:41.2]} 21... Rxd2 {[%clk 0:01:35.3]} 22. Rfe1 {[%clk
0:00:32.5]} 22... Nd5 {[%clk 0:01:27.6]} 23. Ne4 {[%clk 0:00:19.6]} 23... Rd3
{[%clk 0:01:13.1]} 24. Nac5 {[%clk 0:00:19.7]} 24... Bxc5 {[%clk 0:01:11.9]} 25.
Nxc5 {[%clk 0:00:20.6]} 25... Rd2 {[%clk 0:01:11.6]} 26. Nxb7 {[%clk 0:00:12.5]}
26... Ncb4 {[%clk 0:01:06.2]} 27. Bc3 {[%clk 0:00:08.6]} 27... Nxc3 {[%clk
0:00:56.5]} 28. Rxc3 {[%clk 0:00:08.3]} 28... Rdxf2 {[%clk 0:00:56.7]} 29. Rg3
{[%clk 0:00:08.8]} 29... h6 {[%clk 0:00:48.7]} 30. Nc5 {[%clk 0:00:09]} 30...
Rxa2 {[%clk 0:00:42.4]} 31. Re7 {[%clk 0:00:07.8]} 31... Rg8 {[%clk 0:00:36.3]}
32. Ne6 {[%clk 0:00:05.9]} 32... Nc6 {[%clk 0:00:33.6]} 33. Rc7 {[%clk
0:00:05.2]} 33... Na5 {[%clk 0:00:27.9]} 34. Nxg7 {[%clk 0:00:05.4]} 34... Nxb3
{[%clk 0:00:27.8]} 35. Kh2 {[%clk 0:00:02.5]} 35... Nd2 {[%clk 0:00:21.7]} 36.
Nh5 {[%clk 0:00:01.9]} 36... Nf1+ {[%clk 0:00:21.8]} 37. Kg1 {[%clk 0:00:02.2]}
37... Nxg3 {[%clk 0:00:22.1]} 38. Nf6 {[%clk 0:00:01.1]} 38... Ne2+ {[%clk
0:00:20.5]} 39. Kh1 {[%clk 0:00:01.4]} 39... Ra1+ {[%clk 0:00:19.4]} 40. Kh2
{[%clk 0:00:01.7]} 40... Rxg2+ {[%clk 0:00:13.1]} 41. Kxg2 {[%clk 0:00:02.6]}
41... Nf4+ {[%clk 0:00:14]} 42. Kf3 {[%clk 0:00:02.8]} 42... Rf1+ {[%clk
0:00:12.4]} 43. Ke4 {[%clk 0:00:03.2]} 43... Nd5 {[%clk 0:00:04.9]} 44. Rh7#
{[%clk 0:00:02.8]} 1-0

[Event "*** SCC Grand Prix: Titled Tuesday Blitz"]
[Site "Chess.com"]
[Date "2020.07.07"]
[Round "6"]
[White "124chess"]
[Black "mishanick"]
[Result "0-1"]
[WhiteElo "2695"]
[BlackElo "2860"]
[TimeControl "180+1"]
[EndTime "11:07:00 PDT"]
[Termination "mishanick won on time"]

1. d4 {[%clk 0:03:00.9]} 1... Nf6 {[%clk 0:02:59.4]} 2. c4 {[%clk 0:03:00.7]}
2... e6 {[%clk 0:02:59.7]} 3. Nc3 {[%clk 0:03:00.7]} 3... d5 {[%clk 0:02:58.6]}
4. cxd5 {[%clk 0:03:00.6]} 4... Nxd5 {[%clk 0:02:59.5]} 5. e4 {[%clk 0:03:00.6]}
5... Nxc3 {[%clk 0:03:00]} 6. bxc3 {[%clk 0:03:01.5]} 6... c5 {[%clk 0:03:00.2]}
7. Nf3 {[%clk 0:03:02.1]} 7... cxd4 {[%clk 0:03:00.2]} 8. cxd4 {[%clk 0:03:03]}
8... Bb4+ {[%clk 0:03:00.7]} 9. Bd2 {[%clk 0:03:03.9]} 9... Bxd2+ {[%clk
0:03:01.4]} 10. Qxd2 {[%clk 0:03:04.8]} 10... O-O {[%clk 0:03:01.9]} 11. Bc4
{[%clk 0:03:05.5]} 11... b6 {[%clk 0:03:02]} 12. O-O {[%clk 0:03:05.5]} 12...
Bb7 {[%clk 0:03:00.7]} 13. Rfe1 {[%clk 0:03:06.1]} 13... Nd7 {[%clk 0:03:00.8]}
14. Rad1 {[%clk 0:03:05.7]} 14... Rc8 {[%clk 0:03:00]} 15. Bb3 {[%clk
0:03:05.4]} 15... Re8 {[%clk 0:03:00.3]} 16. h3 {[%clk 0:03:04.6]} 16... Nf6
{[%clk 0:02:52.7]} 17. d5 {[%clk 0:03:00.7]} 17... exd5 {[%clk 0:02:48.9]} 18.
exd5 {[%clk 0:02:50.4]} 18... Rxe1+ {[%clk 0:02:46.4]} 19. Nxe1 {[%clk
0:02:39.7]} 19... Qd6 {[%clk 0:02:40.3]} 20. Nc2 {[%clk 0:02:35.3]} 20... Ne4
{[%clk 0:02:06.8]} 21. Qb4 {[%clk 0:02:12.2]} 21... Qxb4 {[%clk 0:01:41.8]} 22.
Nxb4 {[%clk 0:02:13.1]} 22... Nd6 {[%clk 0:01:42.4]} 23. Nc2 {[%clk 0:01:53.2]}
23... Kf8 {[%clk 0:01:35.4]} 24. Ne3 {[%clk 0:01:49.2]} 24... g6 {[%clk
0:01:33.3]} 25. Ng4 {[%clk 0:01:48.3]} 25... b5 {[%clk 0:01:23.3]} 26. Ne3
{[%clk 0:00:54.7]} 26... a5 {[%clk 0:01:22.2]} 27. Rb1 {[%clk 0:00:50.3]} 27...
Rc3 {[%clk 0:01:19.8]} 28. Bd1 {[%clk 0:00:43.1]} 28... b4 {[%clk 0:01:16.4]}
29. Bf3 {[%clk 0:00:39.9]} 29... f5 {[%clk 0:01:10.9]} 30. h4 {[%clk 0:00:37.5]}
30... Ba6 {[%clk 0:01:08]} 31. Kh2 {[%clk 0:00:32]} 31... Ke7 {[%clk 0:01:06.6]}
32. Re1 {[%clk 0:00:28.1]} 32... Kd7 {[%clk 0:01:02.7]} 33. h5 {[%clk
0:00:13.7]} 33... Ra3 {[%clk 0:01:00.5]} 34. hxg6 {[%clk 0:00:13.2]} 34... hxg6
{[%clk 0:01:00.1]} 35. Nc2 {[%clk 0:00:07.4]} 35... Rxa2 {[%clk 0:01:00]} 36.
Nd4 {[%clk 0:00:08.3]} 36... Bd3 {[%clk 0:00:50.7]} 37. Re6 {[%clk 0:00:07.9]}
37... Rc2 {[%clk 0:00:24.8]} 38. Rxg6 {[%clk 0:00:07.2]} 38... Rc4 {[%clk
0:00:22.3]} 39. Rg7+ {[%clk 0:00:06.6]} 39... Ke8 {[%clk 0:00:22.8]} 40. Ne6
{[%clk 0:00:05.6]} 40... b3 {[%clk 0:00:22.2]} 41. Bh5+ {[%clk 0:00:05.6]} 41...
Nf7 {[%clk 0:00:21.5]} 42. Bxf7+ {[%clk 0:00:05.8]} 42... Ke7 {[%clk 0:00:21.2]}
43. Bh5+ {[%clk 0:00:03.5]} 43... Kf6 {[%clk 0:00:20.6]} 44. Rb7 {[%clk
0:00:02.5]} 44... Rb4 {[%clk 0:00:16]} 45. Rxb4 {[%clk 0:00:01.9]} 45... axb4
{[%clk 0:00:16.9]} 46. d6 {[%clk 0:00:01.4]} 46... Kxe6 {[%clk 0:00:15.3]} 0-1

[Event "*** SCC Grand Prix: Titled Tuesday Blitz"]
[Site "Chess.com"]
[Date "2020.07.07"]
[Round "6"]
[White "Onegust"]
[Black "Kopytkin"]
[Result "1-0"]
[WhiteElo "2612"]
[BlackElo "2459"]
[TimeControl "180+1"]
[EndTime "11:07:01 PDT"]
[Termination "Onegust won on time"]

1. e4 {[%clk 0:03:00]} 1... Nf6 {[%clk 0:02:56.7]} 2. e5 {[%clk 0:02:59.1]} 2...
Nd5 {[%clk 0:02:53.1]} 3. d4 {[%clk 0:02:59.6]} 3... d6 {[%clk 0:02:53.1]} 4.
Nf3 {[%clk 0:02:59.9]} 4... g6 {[%clk 0:02:53]} 5. c4 {[%clk 0:02:51.9]} 5...
Nb6 {[%clk 0:02:52.7]} 6. Be2 {[%clk 0:02:47]} 6... Bg7 {[%clk 0:02:49]} 7. exd6
{[%clk 0:02:41.5]} 7... cxd6 {[%clk 0:02:49.9]} 8. O-O {[%clk 0:02:41.8]} 8...
O-O {[%clk 0:02:50.4]} 9. Nc3 {[%clk 0:02:34.7]} 9... Nc6 {[%clk 0:02:49]} 10.
h3 {[%clk 0:02:23]} 10... Bf5 {[%clk 0:02:43.4]} 11. Bg5 {[%clk 0:02:16.5]}
11... h6 {[%clk 0:02:37.7]} 12. Bh4 {[%clk 0:02:15.8]} 12... d5 {[%clk
0:02:20.1]} 13. c5 {[%clk 0:02:10.5]} 13... Nc4 {[%clk 0:02:20.1]} 14. b3 {[%clk
0:02:03.2]} 14... N4a5 {[%clk 0:02:17.5]} 15. Re1 {[%clk 0:02:01.2]} 15... g5
{[%clk 0:02:16.6]} 16. Bg3 {[%clk 0:02:00.9]} 16... b6 {[%clk 0:02:12.7]} 17.
Rc1 {[%clk 0:01:43.1]} 17... bxc5 {[%clk 0:01:39.8]} 18. dxc5 {[%clk 0:01:44]}
18... e6 {[%clk 0:01:40.2]} 19. Bd3 {[%clk 0:01:36.5]} 19... Bxd3 {[%clk
0:01:37.3]} 20. Qxd3 {[%clk 0:01:37.4]} 20... Nb7 {[%clk 0:01:22]} 21. Qa6
{[%clk 0:01:13.9]} 21... Qd7 {[%clk 0:01:15.4]} 22. Nb5 {[%clk 0:01:07.9]} 22...
Rfc8 {[%clk 0:00:29.9]} 23. a3 {[%clk 0:00:59.7]} 23... Nbd8 {[%clk 0:00:25.3]}
24. b4 {[%clk 0:00:54.8]} 24... Qb7 {[%clk 0:00:20.1]} 25. Qa4 {[%clk
0:00:47.3]} 25... a6 {[%clk 0:00:19.5]} 26. Nd6 {[%clk 0:00:46.7]} 26... Qa7
{[%clk 0:00:09.5]} 27. h4 {[%clk 0:00:33]} 27... gxh4 {[%clk 0:00:07.4]} 28.
Bxh4 {[%clk 0:00:31.4]} 28... Rc7 {[%clk 0:00:07.9]} 29. Qc2 {[%clk 0:00:23.5]}
29... Rd7 {[%clk 0:00:06.8]} 30. Qd3 {[%clk 0:00:19.2]} 30... Nb7 {[%clk
0:00:06.8]} 31. Bg3 {[%clk 0:00:15.3]} 31... Nxd6 {[%clk 0:00:06.5]} 32. Bxd6
{[%clk 0:00:16.2]} 32... Qb7 {[%clk 0:00:06.7]} 33. Ne5 {[%clk 0:00:13.2]} 33...
Nxe5 {[%clk 0:00:06.3]} 34. Bxe5 {[%clk 0:00:14.1]} 34... f6 {[%clk 0:00:05.6]}
35. c6 {[%clk 0:00:12.2]} 35... Qc8 {[%clk 0:00:01.4]} 36. cxd7 {[%clk 0:00:12]}
36... Qxd7 {[%clk 0:00:02.3]} 37. Rc7 {[%clk 0:00:12.5]} 37... Qe8 {[%clk
0:00:02.7]} 38. Qg3 {[%clk 0:00:11.3]} 38... Qf8 {[%clk 0:00:02.1]} 39. Bd6
{[%clk 0:00:11.1]} 1-0

[Event "*** SCC Grand Prix: Titled Tuesday Blitz"]
[Site "Chess.com"]
[Date "2020.07.07"]
[Round "6"]
[White "dopolian"]
[Black "ShapkinAnatoliy"]
[Result "1/2-1/2"]
[WhiteElo "2429"]
[BlackElo "2588"]
[TimeControl "180+1"]
[EndTime "11:07:01 PDT"]
[Termination "Game drawn - insufficient material"]

1. e4 {[%clk 0:03:00.9]} 1... e5 {[%clk 0:02:59.6]} 2. Nf3 {[%clk 0:03:01]} 2...
Nc6 {[%clk 0:02:59.9]} 3. Bb5 {[%clk 0:03:01.2]} 3... Nf6 {[%clk 0:02:59.7]} 4.
d3 {[%clk 0:03:00.6]} 4... Bc5 {[%clk 0:02:58.8]} 5. O-O {[%clk 0:03:00.1]} 5...
d6 {[%clk 0:02:58.4]} 6. c3 {[%clk 0:02:58.9]} 6... O-O {[%clk 0:02:58.4]} 7.
Nbd2 {[%clk 0:02:57]} 7... Ne7 {[%clk 0:02:56.4]} 8. b4 {[%clk 0:02:54.4]} 8...
Bb6 {[%clk 0:02:55.9]} 9. Nc4 {[%clk 0:02:55]} 9... Ng6 {[%clk 0:02:54.7]} 10.
a4 {[%clk 0:02:48.5]} 10... a6 {[%clk 0:02:49.1]} 11. Nxb6 {[%clk 0:02:48.7]}
11... cxb6 {[%clk 0:02:40.4]} 12. Bc4 {[%clk 0:02:49]} 12... d5 {[%clk
0:02:35.6]} 13. exd5 {[%clk 0:02:48.9]} 13... Nxd5 {[%clk 0:02:36.5]} 14. Qb3
{[%clk 0:02:46.4]} 14... Ndf4 {[%clk 0:02:33.2]} 15. Bxf4 {[%clk 0:02:40.5]}
15... Nxf4 {[%clk 0:02:28.1]} 16. Rfe1 {[%clk 0:02:23.3]} 16... Kh8 {[%clk
0:02:20.6]} 17. Rxe5 {[%clk 0:02:13.4]} 17... Qf6 {[%clk 0:01:43.1]} 18. Re3
{[%clk 0:01:57.2]} 18... Be6 {[%clk 0:01:27.1]} 19. Bxe6 {[%clk 0:01:44.9]}
19... fxe6 {[%clk 0:01:26.8]} 20. Rae1 {[%clk 0:01:42.7]} 20... Rad8 {[%clk
0:01:14.3]} 21. d4 {[%clk 0:01:37.8]} 21... Qg6 {[%clk 0:00:58.6]} 22. g3 {[%clk
0:01:21.7]} 22... Nd5 {[%clk 0:00:46.8]} 23. Ne5 {[%clk 0:00:48.3]} 23... Qh5
{[%clk 0:00:26.2]} 24. R3e2 {[%clk 0:00:27.6]} 24... b5 {[%clk 0:00:26.1]} 25.
axb5 {[%clk 0:00:26.6]} 25... axb5 {[%clk 0:00:27]} 26. f4 {[%clk 0:00:12.9]}
26... g5 {[%clk 0:00:22.9]} 27. fxg5 {[%clk 0:00:10.7]} 27... Qxg5 {[%clk
0:00:21.4]} 28. Qc2 {[%clk 0:00:09.2]} 28... Rf6 {[%clk 0:00:19.7]} 29. Rf2
{[%clk 0:00:07.9]} 29... Rdf8 {[%clk 0:00:19.8]} 30. Rxf6 {[%clk 0:00:07.3]}
30... Qxf6 {[%clk 0:00:20.7]} 31. Qe2 {[%clk 0:00:04.2]} 31... Nxc3 {[%clk
0:00:20.1]} 32. Qe3 {[%clk 0:00:04.8]} 32... Nd5 {[%clk 0:00:18.6]} 33. Qe2
{[%clk 0:00:05.3]} 33... Nxb4 {[%clk 0:00:18.5]} 34. Rf1 {[%clk 0:00:04.4]}
34... Qxf1+ {[%clk 0:00:17.7]} 35. Qxf1 {[%clk 0:00:05.3]} 35... Rxf1+ {[%clk
0:00:17.8]} 36. Kxf1 {[%clk 0:00:05.8]} 36... Nc6 {[%clk 0:00:17.6]} 37. Nf3
{[%clk 0:00:05.4]} 37... Kg7 {[%clk 0:00:15.7]} 38. Ke2 {[%clk 0:00:05.8]} 38...
Kf6 {[%clk 0:00:16]} 39. Kd3 {[%clk 0:00:06.3]} 39... h6 {[%clk 0:00:15.9]} 40.
Nd2 {[%clk 0:00:06.6]} 40... Kf5 {[%clk 0:00:15.4]} 41. h3 {[%clk 0:00:06.6]}
41... h5 {[%clk 0:00:14.9]} 42. Ne4 {[%clk 0:00:05.9]} 42... e5 {[%clk
0:00:08.8]} 43. Nd6+ {[%clk 0:00:04]} 43... Ke6 {[%clk 0:00:08.3]} 44. Nxb5
{[%clk 0:00:04.5]} 44... exd4 {[%clk 0:00:07.7]} 45. Nxd4+ {[%clk 0:00:05]}
45... Nxd4 {[%clk 0:00:08.1]} 46. Kxd4 {[%clk 0:00:05.9]} 46... Kf5 {[%clk
0:00:07.5]} 47. g4+ {[%clk 0:00:05.6]} 47... Kg5 {[%clk 0:00:06.7]} 48. gxh5
{[%clk 0:00:05.3]} 48... Kxh5 {[%clk 0:00:06.9]} 49. Kc5 {[%clk 0:00:05.6]}
49... Kh4 {[%clk 0:00:07.8]} 50. Kb6 {[%clk 0:00:06]} 50... Kxh3 {[%clk
0:00:08.7]} 51. Kxb7 {[%clk 0:00:06.9]} 1/2-1/2

[Event "*** SCC Grand Prix: Titled Tuesday Blitz"]
[Site "Chess.com"]
[Date "2020.07.07"]
[Round "6"]
[White "IsaacWiebe"]
[Black "guillejr"]
[Result "0-1"]
[WhiteElo "2080"]
[BlackElo "1952"]
[TimeControl "180+1"]
[EndTime "11:07:01 PDT"]
[Termination "guillejr won by checkmate"]

1. d4 {[%clk 0:03:00.9]} 1... Nf6 {[%clk 0:02:58.2]} 2. c4 {[%clk 0:02:59.3]}
2... c5 {[%clk 0:02:58.1]} 3. d5 {[%clk 0:02:58.6]} 3... b5 {[%clk 0:02:57.7]}
4. cxb5 {[%clk 0:02:59.5]} 4... a6 {[%clk 0:02:58.2]} 5. bxa6 {[%clk 0:03:00.2]}
5... d6 {[%clk 0:02:57.9]} 6. b3 {[%clk 0:02:55.4]} 6... Bxa6 {[%clk 0:02:56.8]}
7. Bb2 {[%clk 0:02:55.6]} 7... Nbd7 {[%clk 0:02:56.9]} 8. g3 {[%clk 0:02:55.4]}
8... g6 {[%clk 0:02:57.1]} 9. Bg2 {[%clk 0:02:53.3]} 9... Bg7 {[%clk 0:02:57.7]}
10. Nh3 {[%clk 0:02:52.1]} 10... O-O {[%clk 0:02:57]} 11. O-O {[%clk 0:02:52.1]}
11... Qc7 {[%clk 0:02:36.5]} 12. Nd2 {[%clk 0:02:48.9]} 12... Rfb8 {[%clk
0:02:36.9]} 13. Nf4 {[%clk 0:02:45.7]} 13... Ra7 {[%clk 0:02:18.9]} 14. Re1
{[%clk 0:02:15.8]} 14... Qa5 {[%clk 0:02:04.8]} 15. Qc2 {[%clk 0:02:11.2]} 15...
Ne5 {[%clk 0:01:54.5]} 16. Bc3 {[%clk 0:02:02.1]} 16... Qc7 {[%clk 0:01:28.5]}
17. h4 {[%clk 0:02:00.8]} 17... h6 {[%clk 0:01:25.5]} 18. a4 {[%clk 0:01:40.8]}
18... Rab7 {[%clk 0:01:22.4]} 19. Rab1 {[%clk 0:01:33.7]} 19... Nfg4 {[%clk
0:01:11.2]} 20. Ne4 {[%clk 0:00:58.7]} 20... Nf6 {[%clk 0:00:56]} 21. Nxf6+
{[%clk 0:00:56.6]} 21... Bxf6 {[%clk 0:00:56.9]} 22. Be4 {[%clk 0:00:40.9]}
22... Qc8 {[%clk 0:00:20.4]} 23. Kg2 {[%clk 0:00:38.3]} 23... Rb6 {[%clk
0:00:16.3]} 24. Nd3 {[%clk 0:00:12.3]} 24... Nxd3 {[%clk 0:00:09.4]} 25. Bxd3
{[%clk 0:00:12.2]} 25... Bxc3 {[%clk 0:00:08.7]} 26. Qxc3 {[%clk 0:00:10.8]}
26... Bxd3 {[%clk 0:00:07.5]} 27. Qxd3 {[%clk 0:00:05.8]} 27... Qb7 {[%clk
0:00:07.8]} 28. a5 {[%clk 0:00:03.1]} 28... Rxb3 {[%clk 0:00:07]} 29. Rxb3
{[%clk 0:00:04]} 29... Qxb3 {[%clk 0:00:07.6]} 30. Qd2 {[%clk 0:00:04.3]} 30...
c4 {[%clk 0:00:05.8]} 31. Qxh6 {[%clk 0:00:03.4]} 31... c3 {[%clk 0:00:05.4]}
32. Qe3 {[%clk 0:00:03.1]} 32... Qxd5+ {[%clk 0:00:05]} 33. f3 {[%clk 0:00:03]}
33... c2 {[%clk 0:00:05.2]} 34. Rc1 {[%clk 0:00:03.2]} 34... Qxa5 {[%clk
0:00:04.3]} 35. Qd2 {[%clk 0:00:02.9]} 35... Qxd2 {[%clk 0:00:03.4]} 36. Rg1
{[%clk 0:00:02.8]} 36... c1=Q {[%clk 0:00:03.8]} 37. Rxc1 {[%clk 0:00:01.8]}
37... Qxc1 {[%clk 0:00:04.7]} 38. h5 {[%clk 0:00:02.2]} 38... Qd2 {[%clk
0:00:05.6]} 39. hxg6 {[%clk 0:00:01.6]} 39... Rb2 {[%clk 0:00:06.5]} 40. gxf7+
{[%clk 0:00:01.5]} 40... Kxf7 {[%clk 0:00:06.2]} 41. Kh3 {[%clk 0:00:02.4]}
41... Qxe2 {[%clk 0:00:06.9]} 42. Kg4 {[%clk 0:00:03.3]} 42... Qe6+ {[%clk
0:00:07.7]} 43. Kh4 {[%clk 0:00:03.2]} 43... Qf6+ {[%clk 0:00:08.6]} 44. Kh3
{[%clk 0:00:03.1]} 44... Rf2 {[%clk 0:00:09.5]} 45. g4 {[%clk 0:00:03.5]} 45...
Rxf3+ {[%clk 0:00:10.4]} 46. Kg2 {[%clk 0:00:04.1]} 46... Rf4 {[%clk 0:00:11.2]}
47. Kg3 {[%clk 0:00:04.5]} 47... Qg5 {[%clk 0:00:12.1]} 48. Kh2 {[%clk
0:00:04.3]} 48... Rxg4 {[%clk 0:00:13]} 49. Kh1 {[%clk 0:00:04.7]} 49... Qh4#
{[%clk 0:00:13.9]} 0-1